fUSD/lending_fUSD_20250202
["ID","MTS","AMOUNT","RATE_DAILY","PERIOD"]
[351313536,1738511508278,-1323.45,0.00012875,2]
[351313537,1738511508288,-1635.63,0.00012875,2]
[351313538,1738511508298,-500.0,0.00012875,2]
[351313539,1738511508308,-5662.33,0.00012875,2]
[351313540,1738511508318,-774.16,0.00012875,2]
[351313541,1738511508328,-782.48,0.00012875,2]
[351313542,1738511508338,-7030.17,0.00012875,2]
[351313543,1738511508348,-2514.52,0.00012875,2]
[351313544,1738511508358,-681.48,0.00012875,2]
[351313545,1738511508367,-790.42,0.00012875,2]
[351313546,1738511508377,-3657.25,0.00012875,2]
[351313547,1738511508387,-3049.12,0.00012875,2]
[351313548,1738511508397,-1745.16,0.00012875,2]
[351313549,1738511508407,-1031.35,0.00012875,2]
[351313550,1738511508417,-1816.81,0.00012875,2]
[351313551,1738511508426,-528.0,0.00012875,2]
[351313552,1738511508437,-4052.48,0.00012875,2]
[351313553,1738511508447,-602.22,0.00012875,2]
[351313554,1738511508457,-500.0,0.00012875,2]
[351313555,1738511508467,-1474.86,0.00012875,2]
[351313556,1738511508477,-4337.5,0.00012875,2]
[351313557,1738511508486,-1297.61,0.00012875,2]
[351313558,1738511508496,-1453.24,0.00012875,2]
[351313559,1738511508509,-1696.27,0.00012875,2]
[351313560,1738511508519,-1292.86,0.00012875,2]
[351313561,1738511508530,-1155.8,0.00012875,2]
[351313562,1738511508540,-734.3,0.00012875,2]
[351313563,1738511508551,-1512.01,0.00012875,2]
[351313564,1738511508561,-1336.03,0.00012875,2]
[351313565,1738511508571,-322.09,0.00012875,2]
[351313566,1738511508582,-686.62,0.00012875,2]
[351313567,1738511508593,-1393.61,0.00012875,2]
[351313568,1738511508604,-505.20120045,0.00012875,2]
[351313569,1738511508616,-1657.23,0.00012875,2]
[351313570,1738511508626,-1120.37,0.00012875,2]
[351313571,1738511508636,-823.51,0.00012875,2]
[351313572,1738511508646,-225.089609,0.00012875,2]
[351313573,1738511508656,-500.0,0.00012876,2]
[351313574,1738511508666,-663.36,0.00012876,2]
[351313575,1738511508676,-500.0,0.00012876,2]
[351313576,1738511508688,-500.0,0.00012876,2]
[351313577,1738511508698,-500.0,0.00012876,2]
[351313578,1738511508708,-698.15,0.00012876,2]
[351313579,1738511508717,-500.0,0.00012876,2]
[351313580,1738511508728,-500.0,0.00012876,2]
[351313581,1738511508738,-500.0,0.00012876,2]
[351313582,1738511508748,-500.0,0.00012876,2]
[351313583,1738511508758,-500.0,0.00012876,2]
[351313584,1738511508768,-500.0,0.00012876,2]
[351313585,1738511508777,-705.16,0.00012876,2]
[351313586,1738511508787,-531.92,0.00012876,2]
[351313587,1738511508798,-500.0,0.00012876,2]
[351313588,1738511508808,-500.0,0.00012876,2]
[351313589,1738511508818,-482.74384607,0.00012876,2]
[351313590,1738511508828,-500.0,0.00012876,2]
[351313591,1738511508838,-500.0,0.00012876,2]
[351313592,1738511508847,-500.0,0.00012876,2]
[351313593,1738511508857,-719.85,0.00012876,2]
[351313594,1738511508866,-594.38,0.00012876,2]
[351313595,1738511508876,-563.78,0.00012876,2]
[351313596,1738511508886,-500.0,0.00012876,2]
[351313597,1738511508896,-500.0,0.00012876,2]
[351313598,1738511508906,-752.42,0.00012876,2]
[351313599,1738511508916,-500.0,0.00012876,2]
[351313600,1738511508924,-500.0,0.00012876,2]
[351313601,1738511508935,-743.8,0.00012876,2]
[351313602,1738511508943,-500.0,0.00012876,2]
[351313603,1738511508953,-500.0,0.00012876,2]
[351313604,1738511508963,-279.33,0.00012876,2]
[351313605,1738511508973,-500.0,0.00012876,2]
[351313606,1738511508982,-725.47,0.00012876,2]
[351313607,1738511508992,-764.06,0.00012876,2]
[351313608,1738511509002,-500.0,0.00012876,2]
[351313609,1738511509011,-698.18,0.00012876,2]
[351313610,1738511509021,-791.74,0.00012876,2]
[351313611,1738511509031,-807.25,0.00012876,2]
[351313612,1738511509040,-547.53,0.00012876,2]
[351313613,1738511509050,-500.0,0.00012876,2]
[351313614,1738511509059,-500.0,0.00012876,2]
[351313615,1738511509068,-837.73,0.00012876,2]
[351313616,1738511509078,-621.45,0.00012876,2]
[351313617,1738511509088,-631.63,0.00012876,2]
[351313618,1738511509098,-799.17,0.00012876,2]
[351313619,1738511509108,-771.95,0.00012876,2]
[351313620,1738511509118,-620.52,0.00012876,2]
[351313621,1738511509128,-618.87,0.00012876,2]
[351313622,1738511509137,-616.27,0.00012876,2]
[351313623,1738511509147,-500.0,0.00012876,2]
[351313624,1738511509157,-565.37,0.00012876,2]
[351313625,1738511509167,-500.0,0.00012876,2]
[351313626,1738511509176,-500.0,0.00012876,2]
[351313627,1738511509188,-780.81,0.00012876,2]
[351313628,1738511509198,-584.3,0.00012876,2]
[351313629,1738511509207,-500.0,0.00012876,2]
[351313630,1738511509218,-2686.29,0.00012876,2]
[351313631,1738511509228,-500.0,0.00012876,2]
[351313632,1738511509237,-808.37,0.00012876,2]
[351313633,1738511509247,-794.83,0.00012876,2]
[351313634,1738511509314,-2679.98,0.00012876,2]
[351313635,1738511509325,-468.01094195,0.00012876,2]
[351313636,1738511509335,-2338.08,0.00012876,2]
[351313637,1738511509345,-1073.23,0.00012876,2]
[351313638,1738511509354,-500.0,0.00012876,2]
[351313639,1738511509365,-500.0,0.00012876,2]
[351313640,1738511509375,-1816.82,0.00012876,2]
[351313641,1738511509385,-1683.79,0.00012876,2]
[351313642,1738511509395,-4162.42,0.00012876,2]
[351313643,1738511509405,-3144.7,0.00012876,2]
[351313644,1738511509414,-575.75,0.00012876,2]
[351313645,1738511509424,-305.292181,0.00012876,2]
[351313646,1738511509436,-689.19,0.00012876,2]
[351313647,1738511509446,-1191.99,0.00012876,2]
[351313648,1738511509455,-851.33,0.00012876,2]
[351313649,1738511509465,-677.75,0.00012876,2]
[351313650,1738511509475,-155.403685,0.00012876,2]
[351313651,1738511509485,-1595.43,0.00012876,2]
[351313652,1738511509496,-2506.07,0.00012876,2]
[351313653,1738511509508,-539.77,0.00012876,2]
[351313654,1738511509518,-842.15,0.00012876,2]
[351313655,1738511509529,-3571.76,0.00012876,2]
[351313656,1738511509538,-754.64,0.00012876,2]
[351313657,1738511509547,-779.97,0.00012876,2]
[351313658,1738511509558,-319.816449,0.00012876,2]
[351313659,1738511509568,-3366.95,0.00012876,2]
[351313660,1738511509577,-1388.96,0.00012876,2]
[351313661,1738511509588,-1447.22,0.00012876,2]
[351313662,1738511509597,-1621.42,0.00012876,2]
[351313663,1738511509607,-1280.75,0.00012876,2]
[351313664,1738511509616,-2398.8,0.00012876,2]
[351313665,1738511509625,-986.99,0.00012876,2]
[351313666,1738511509635,-6074.3,0.00012876,2]
[351313667,1738511509644,-886.37,0.00012876,2]
[351313668,1738511509654,-1376.7,0.00012876,2]
[351313669,1738511509663,-500.0,0.00012876,2]
[351313670,1738511509672,-715.29,0.00012876,2]
[351313671,1738511509682,-1472.49,0.00012876,2]
[351313672,1738511509692,-500.0,0.00012876,2]
[351313673,1738511509702,-520.69,0.00012876,2]
[351313674,1738511509712,-2816.92,0.00012876,2]
[351313675,1738511509722,-1537.46,0.00012876,2]
[351313676,1738511509732,-1782.22,0.00012876,2]
[351313677,1738511509742,-2593.44,0.00012876,2]
[351313678,1738511509751,-1707.98,0.00012876,2]
[351313679,1738511509761,-814.03,0.00012876,2]
[351313680,1738511509771,-2517.19,0.00012876,2]
[351313681,1738511509780,-3495.99,0.00012876,2]
[351313682,1738511509791,-1097.15,0.00012876,2]
[351313683,1738511509801,-500.0,0.00012876,2]
[351313684,1738511509811,-3686.72,0.00012876,2]
[351313685,1738511509821,-873.88,0.00012876,2]
[351313686,1738511509831,-4032.99,0.00012876,2]
[351313687,1738511509841,-500.0,0.00012876,2]
[351313688,1738511509850,-2612.06,0.00012876,2]
[351313689,1738511509860,-3411.01,0.00012876,2]
[351313690,1738511509870,-2404.98,0.00012876,2]
[351313691,1738511509880,-500.0,0.00012876,2]
[351313692,1738511509891,-866.33,0.00012876,2]
[351313693,1738511509900,-3469.55,0.00012876,2]
[351313694,1738511509910,-1883.12,0.00012876,2]
[351313695,1738511509920,-2058.8,0.00012876,2]
[351313696,1738511509929,-1319.01,0.00012876,2]
[351313697,1738511509940,-608.43,0.00012876,2]
[351313698,1738511509950,-2391.61,0.00012876,2]
[351313699,1738511509960,-4530.32,0.00012876,2]
[351313700,1738511509969,-500.0,0.00012876,2]
[351313701,1738511509978,-1228.14,0.00012876,2]
[351313702,1738511509987,-6198.62,0.00012876,2]
[351313703,1738511509997,-500.0,0.00012876,2]
[351313704,1738511510007,-4177.74,0.00012876,2]
[351313705,1738511510017,-853.08,0.00012876,2]
[351313706,1738511510026,-276.88,0.00012876,2]
[351313707,1738511510036,-669.71,0.00012876,2]
[351313708,1738511510045,-539.5,0.00012876,2]
[351313709,1738511510056,-1402.67,0.00012876,2]
[351313710,1738511510066,-1801.53,0.00012876,2]
[351313711,1738511510075,-1549.92,0.00012876,2]
[351313712,1738511510085,-500.0,0.00012876,2]
[351313713,1738511510093,-820.42,0.00012876,2]
[351313714,1738511510103,-569.44,0.00012876,2]
[351313715,1738511510113,-935.02,0.00012876,2]
[351313716,1738511510123,-816.63,0.00012876,2]
[351313717,1738511510132,-500.0,0.00012876,2]
[351313718,1738511510142,-584.53,0.00012876,2]
[351313719,1738511510151,-885.67,0.00012876,2]
[351313720,1738511510161,-14896.43,0.00012893,2]
[351313721,1738511510171,-500.0,0.00012986,2]
[351313722,1738511510180,-550.0,0.00013,2]
[351313723,1738511510191,-1332.82,0.00013006,2]
[351313724,1738511510200,-1964.01,0.00013006,2]
[351313725,1738511510210,-2873.430661,0.00013006,2]
[351313726,1738511510219,-2603.59,0.00013006,2]
[351313727,1738511510228,-2873.430661,0.00013006,2]
[351313728,1738511510238,-2889.94,0.00013006,2]
[351313729,1738511510247,-222.401033,0.00013006,2]
[351313730,1738511510257,-4743.23,0.00013006,2]
[351313731,1738511510268,-222.401033,0.00013006,2]
[351313732,1738511510277,-10523.62,0.00013006,2]
[351313733,1738511510286,-151.0,0.00013006,2]
[351313734,1738511510296,-161.73379,0.00013006,2]
[351313735,1738511510305,-161.73379,0.00013006,2]
[351313736,1738511510315,-1289.080245,0.00013006,2]
[351313737,1738511510324,-1289.080245,0.00013006,2]
[351313738,1738511510334,-1554.63,0.00013006,2]
[351313739,1738511510344,-151.0,0.00013006,2]
[351313740,1738511510354,-1284.59,0.00013006,2]
[351313741,1738511510363,-151.0,0.00013006,2]
[351313742,1738511510372,-271.70168,0.00013006,2]
[351313743,1738511510381,-1679.21,0.00013006,2]
[351313744,1738511510391,-151.0,0.00013006,2]
[351313745,1738511510400,-2652.81,0.00013006,2]
[351313746,1738511510410,-654.17,0.00013006,2]
[351313747,1738511510419,-1718.82,0.00013006,2]
[351313748,1738511510428,-151.0,0.00013006,2]
[351313749,1738511510439,-1974.37,0.00013006,2]
[351313750,1738511510448,-2000.83,0.00013006,2]
[351313751,1738511510457,-836.56,0.00013006,2]
[351313752,1738511510467,-1343.39,0.00013006,2]
[351313753,1738511510476,-1186.75,0.00013006,2]
[351313754,1738511510486,-500.0,0.00013007,2]
[351313755,1738511510495,-500.0,0.00013007,2]
[351313756,1738511510506,-596.58,0.00013007,2]
[351313757,1738511510517,-500.0,0.00013007,2]
[351313758,1738511510526,-218.4,0.00013007,2]
[351313759,1738511510536,-218.4,0.00013007,2]
[351313760,1738511510546,-814.253625,0.00013007,2]
[351313761,1738511510556,-814.253625,0.00013007,2]
[351313762,1738511510565,-151.0,0.00013007,2]
[351313763,1738511510575,-172.046731,0.00013007,2]
[351313764,1738511510585,-172.046731,0.00013007,2]
[351313765,1738511510594,-231.451958,0.00013007,2]
[351313766,1738511510604,-231.451958,0.00013007,2]
[351313767,1738511510613,-215.347021,0.00013007,2]
[351313768,1738511510622,-215.347021,0.00013007,2]
[351313769,1738511510632,-710.49,0.00013007,2]
[351313770,1738511510640,-1187.42,0.00013008,2]
[351313771,1738511510649,-817.82,0.00013008,2]
[351313772,1738511510657,-607.41,0.00013008,2]
[351313773,1738511510665,-500.0,0.00013008,2]
[351313774,1738511510674,-1230.03,0.00013008,2]
[351313775,1738511510682,-615.34,0.00013008,2]
[351313776,1738511510691,-714.07,0.00013008,2]
[351313777,1738511510701,-1449.17,0.00013008,2]
[351313778,1738511510711,-1251.19,0.00013008,2]
[351313779,1738511510720,-1405.84,0.00013008,2]
[351313780,1738511510729,-1494.61,0.00013008,2]
[351313781,1738511510738,-828.44,0.00013008,2]
[351313782,1738511510748,-500.0,0.00013008,2]
[351313783,1738511510756,-676.04,0.00013008,2]
[351313784,1738511510765,-535.23,0.00013008,2]
[351313785,1738511510773,-1723.36,0.00013008,2]
[351313786,1738511510781,-854.84,0.00013008,2]
[351313787,1738511510790,-1459.08,0.00013008,2]
[351313788,1738511510798,-1678.19,0.00013008,2]
[351313789,1738511510806,-571.62,0.00013008,2]
[351313790,1738511510815,-780.5,0.00013008,2]
[351313791,1738511510822,-500.0,0.00013008,2]
[351313792,1738511510831,-1296.82,0.00013008,2]
[351313793,1738511510839,-1446.98,0.00013008,2]
[351313794,1738511510847,-500.0,0.00013008,2]
[351313795,1738511510854,-618.81,0.00013008,2]
[351313796,1738511510862,-730.18,0.00013008,2]
[351313797,1738511510871,-609.86,0.00013008,2]
[351313798,1738511510877,-978.46,0.00013012,2]
[351313799,1738511510885,-518.13,0.00013012,2]
[351313800,1738511510892,-500.0,0.00013012,2]
[351313801,1738511510899,-1147.35,0.00013012,2]
[351313802,1738511510907,-668.46,0.00013012,2]
[351313803,1738511510915,-1211.37,0.00013012,2]
[351313804,1738511510922,-594.76,0.00013012,2]
[351313805,1738511510929,-1093.43,0.00013012,2]
[351313806,1738511510939,-500.0,0.00013012,2]
[351313807,1738511510949,-645.56093202,0.00013012,2]
[351313808,1738511510959,-513.55,0.00013012,2]
[351313809,1738511510968,-829.51,0.00013012,2]
[351313810,1738511510979,-500.0,0.00013012,2]
[351313811,1738511510988,-500.0,0.00013012,2]
[351313812,1738511510998,-1097.71,0.00013012,2]
[351313813,1738511511007,-1068.84,0.00013012,2]
[351313814,1738511511017,-500.0,0.00013012,2]
[351313815,1738511511027,-500.0,0.00013012,2]
[351313816,1738511511037,-500.0,0.00013012,2]
[351313817,1738511511046,-561.08,0.00013012,2]
[351313818,1738511511058,-500.0,0.00013012,2]
[351313819,1738511511067,-515.69,0.00013012,2]
[351313820,1738511511077,-653.67,0.00013012,2]
[351313821,1738511511087,-1093.31,0.00013012,2]
[351313822,1738511511096,-1053.18,0.00013012,2]
[351313823,1738511511106,-1273.51,0.00013012,2]
[351313824,1738511511115,-522.28,0.00013012,2]
[351313825,1738511511125,-1239.31,0.00013012,2]
[351313826,1738511511134,-740.34,0.00013012,2]
[351313827,1738511511144,-500.0,0.00013012,2]
[351313828,1738511511153,-644.61,0.00013012,2]
[351313829,1738511511163,-913.35,0.00013012,2]
[351313830,1738511511173,-1062.0,0.00013012,2]
[351313831,1738511511185,-1115.18,0.00013012,2]
[351313832,1738511511194,-945.68,0.00013012,2]
[351313833,1738511511205,-607.69,0.00013012,2]
[351313834,1738511511214,-500.0,0.00013012,2]
[351313835,1738511511224,-522.96,0.00013012,2]
[351313836,1738511511233,-1035.26,0.00013012,2]
[351313837,1738511511242,-2196.81,0.00013012,2]
[351313838,1738511511252,-1325.26,0.00013012,2]
[351313839,1738511511262,-975.31,0.00013012,2]
[351313840,1738511511271,-1985.37,0.00013012,2]
[351313841,1738511511281,-918.08,0.00013012,2]
[351313842,1738511511290,-2083.26,0.00013012,2]
[351313843,1738511511299,-1965.57,0.00013012,2]
[351313844,1738511511309,-1323.45,0.00013012,2]
[351313845,1738511511319,-1635.63,0.00013012,2]
[351313846,1738511511330,-226.32942789,0.00013012,2]
[351313847,1738511511340,-5662.33,0.00013012,2]
[351313848,1738511511350,-774.16,0.00013012,2]
[351313849,1738511511360,-782.48,0.00013012,2]
[351313850,1738511511369,-7030.17,0.00013012,2]
[351313851,1738511511379,-2514.52,0.00013012,2]
[351313852,1738511511388,-681.48,0.00013012,2]
[351313853,1738511511398,-790.42,0.00013012,2]
[351313854,1738511511408,-3657.25,0.00013012,2]
[351313855,1738511511417,-3049.12,0.00013012,2]
[351313856,1738511511427,-1745.16,0.00013012,2]
[351313857,1738511511438,-1031.35,0.00013012,2]
[351313858,1738511511448,-1816.81,0.00013012,2]
[351313859,1738511511458,-528.0,0.00013012,2]
[351313860,1738511511468,-4052.48,0.00013012,2]
[351313861,1738511511477,-602.22,0.00013012,2]
[351313862,1738511511487,-539.48556468,0.00013012,2]
[351313863,1738511511497,-1474.86,0.00013012,2]
[351313864,1738511511508,-4337.5,0.00013012,2]
[351313865,1738511511519,-1297.61,0.00013012,2]
[351313866,1738511511528,-1453.24,0.00013012,2]
[351313867,1738511511538,-1696.27,0.00013012,2]
[351313868,1738511511548,-1292.86,0.00013012,2]
[351313869,1738511511559,-1155.8,0.00013012,2]
[351313870,1738511511570,-734.3,0.00013012,2]
[351313871,1738511511579,-1512.01,0.00013012,2]
[351313872,1738511511590,-1336.03,0.00013012,2]
[351313873,1738511511600,-686.62,0.00013012,2]
[351313874,1738511511610,-1393.61,0.00013012,2]
[351313875,1738511511621,-1657.23,0.00013012,2]
[351313876,1738511511633,-1120.37,0.00013012,2]
[351313877,1738511511643,-823.51,0.00013012,2]
[351313878,1738511511655,-500.0,0.00013013,2]
[351313879,1738511511664,-663.36,0.00013013,2]
[351313880,1738511511673,-500.0,0.00013013,2]
[351313881,1738511511685,-500.0,0.00013013,2]
[351313882,1738511511695,-500.0,0.00013013,2]
[351313883,1738511511705,-698.15,0.00013013,2]
[351313884,1738511511715,-500.0,0.00013013,2]
[351313885,1738511511724,-500.0,0.00013013,2]
[351313886,1738511511734,-500.0,0.00013013,2]
[351313887,1738511511744,-500.0,0.00013013,2]
[351313888,1738511511754,-500.0,0.00013013,2]
[351313889,1738511511764,-500.0,0.00013013,2]
[351313890,1738511511773,-705.16,0.00013013,2]
[351313891,1738511511783,-531.92,0.00013013,2]
[351313892,1738511511794,-500.0,0.00013013,2]
[351313893,1738511511804,-500.0,0.00013013,2]
[351313894,1738511511814,-500.0,0.00013013,2]
[351313895,1738511511824,-500.0,0.00013013,2]
[351313896,1738511511834,-500.0,0.00013013,2]
[351313897,1738511511843,-719.85,0.00013013,2]
[351313898,1738511511853,-594.38,0.00013013,2]
[351313899,1738511511863,-563.78,0.00013013,2]
[351313900,1738511511874,-500.0,0.00013013,2]
[351313901,1738511511884,-500.0,0.00013013,2]
[351313902,1738511511894,-752.42,0.00013013,2]
[351313903,1738511511904,-312.45180982,0.00013013,2]
[351313904,1738511511914,-500.0,0.00013013,2]
[351313905,1738511511924,-743.8,0.00013013,2]
[351313906,1738511511934,-500.0,0.00013013,2]
[351313907,1738511511945,-500.0,0.00013013,2]
[351313908,1738511511955,-500.0,0.00013013,2]
[351313909,1738511511965,-725.47,0.00013013,2]
[351313910,1738511511976,-764.06,0.00013013,2]
[351313911,1738511511986,-500.0,0.00013013,2]
[351313912,1738511511996,-698.18,0.00013013,2]
[351313913,1738511512005,-791.74,0.00013013,2]
[351313914,1738511512016,-807.25,0.00013013,2]
[351313915,1738511512026,-547.53,0.00013013,2]
[351313916,1738511512036,-382.91960392,0.00013013,2]
[351313917,1738511512046,-155.69382528,0.00013013,2]
[351313918,1738511512056,-837.73,0.00013013,2]
[351313919,1738511512066,-621.45,0.00013013,2]
[351313920,1738511512076,-631.63,0.00013013,2]
[351313921,1738511512086,-799.17,0.00013013,2]
[351313922,1738511512096,-771.95,0.00013013,2]
[351313923,1738511512106,-620.52,0.00013013,2]
[351313924,1738511512116,-618.87,0.00013013,2]
[351313925,1738511512126,-616.27,0.00013013,2]
[351313926,1738511512136,-500.0,0.00013013,2]
[351313927,1738511512146,-565.37,0.00013013,2]
[351313928,1738511512156,-338.63912977,0.00013013,2]
[351313929,1738511512166,-500.0,0.00013013,2]
[351313930,1738511512176,-780.81,0.00013013,2]
[351313931,1738511512188,-584.3,0.00013013,2]
[351313932,1738511512198,-500.0,0.00013013,2]
[351313933,1738511512208,-2686.29,0.00013013,2]
[351313934,1738511512219,-500.0,0.00013013,2]
[351313935,1738511512229,-269.295923,0.00013013,2]
[351313936,1738511512239,-269.295923,0.00013013,2]
[351313937,1738511512249,-808.37,0.00013013,2]
[351313938,1738511512259,-794.83,0.00013013,2]
[351313939,1738511512273,-2679.98,0.00013013,2]
[351313940,1738511512285,-2338.08,0.00013013,2]
[351313941,1738511512296,-1073.23,0.00013013,2]
[351313942,1738511512307,-321.28,0.00013013,2]
[351313943,1738511512318,-478.89651565,0.00013013,2]
[351313944,1738511512329,-1816.82,0.00013013,2]
[351313945,1738511512339,-1683.79,0.00013013,2]
[351313946,1738511512350,-4162.42,0.00013013,2]
[351313947,1738511512360,-3144.7,0.00013013,2]
[351313948,1738511512371,-8870.537806,0.00013013,2]
[351313949,1738511512381,-151.0,0.00013013,2]
[351313950,1738511512391,-575.75,0.00013013,2]
[351313951,1738511512401,-689.19,0.00013013,2]
[351313952,1738511512411,-305.292181,0.00013013,2]
[351313953,1738511512421,-1191.99,0.00013013,2]
[351313954,1738511512431,-851.33,0.00013013,2]
[351313955,1738511512444,-677.75,0.00013013,2]
[351313956,1738511512454,-1595.43,0.00013013,2]
[351313957,1738511512464,-2506.07,0.00013013,2]
[351313958,1738511512474,-539.77,0.00013013,2]
[351313959,1738511512484,-842.15,0.00013013,2]
[351313960,1738511512494,-3571.76,0.00013013,2]
[351313961,1738511512508,-754.64,0.00013013,2]
[351313962,1738511512518,-779.97,0.00013013,2]
[351313963,1738511512528,-319.816449,0.00013013,2]
[351313964,1738511512538,-3366.95,0.00013013,2]
[351313965,1738511512549,-1388.96,0.00013013,2]
[351313966,1738511512559,-1447.22,0.00013013,2]
[351313967,1738511512569,-1621.42,0.00013013,2]
[351313968,1738511512582,-1280.75,0.00013013,2]
[351313969,1738511512592,-2398.8,0.00013013,2]
[351313970,1738511512602,-986.99,0.00013013,2]
[351313971,1738511512612,-6074.3,0.00013013,2]
[351313972,1738511512622,-886.37,0.00013013,2]
[351313973,1738511512632,-1376.7,0.00013013,2]
[351313974,1738511512642,-500.0,0.00013013,2]
[351313975,1738511512652,-715.29,0.00013013,2]
[351313976,1738511512662,-1472.49,0.00013013,2]
[351313977,1738511512672,-463.08048809,0.00013013,2]
[351313978,1738511512683,-520.69,0.00013013,2]
[351313979,1738511512693,-2816.92,0.00013013,2]
[351313980,1738511512703,-1537.46,0.00013013,2]
[351313981,1738511512713,-1782.22,0.00013013,2]
[351313982,1738511512723,-2593.44,0.00013013,2]
[351313983,1738511512733,-1707.98,0.00013013,2]
[351313984,1738511512743,-814.03,0.00013013,2]
[351313985,1738511512754,-2517.19,0.00013013,2]
[351313986,1738511512763,-3495.99,0.00013013,2]
[351313987,1738511512773,-1097.15,0.00013013,2]
[351313988,1738511512783,-3686.72,0.00013013,2]
[351313989,1738511512793,-500.0,0.00013013,2]
[351313990,1738511512803,-873.88,0.00013013,2]
[351313991,1738511512814,-4032.99,0.00013013,2]
[351313992,1738511512824,-500.0,0.00013013,2]
[351313993,1738511512834,-2612.06,0.00013013,2]
[351313994,1738511512844,-3411.01,0.00013013,2]
[351313995,1738511512855,-2404.98,0.00013013,2]
[351313996,1738511512865,-500.0,0.00013013,2]
[351313997,1738511512875,-866.33,0.00013013,2]
[351313998,1738511512885,-3469.55,0.00013013,2]
[351313999,1738511512895,-1883.12,0.00013013,2]
[351314000,1738511512906,-2058.8,0.00013013,2]
[351314001,1738511512916,-1319.01,0.00013013,2]
[351314002,1738511512927,-608.43,0.00013013,2]
[351314003,1738511512939,-2391.61,0.00013013,2]
[351314004,1738511512948,-4530.32,0.00013013,2]
[351314005,1738511512959,-500.0,0.00013013,2]
[351314006,1738511512969,-1228.14,0.00013013,2]
[351314007,1738511512979,-6198.62,0.00013013,2]
[351314008,1738511512989,-266.01,0.00013013,2]
[351314009,1738511512998,-4177.74,0.00013013,2]
[351314010,1738511513008,-853.08,0.00013013,2]
[351314011,1738511513019,-669.71,0.00013013,2]
[351314012,1738511513028,-539.5,0.00013013,2]
[351314013,1738511513038,-1402.67,0.00013013,2]
[351314014,1738511513048,-1801.53,0.00013013,2]
[351314015,1738511513058,-1549.92,0.00013013,2]
[351314016,1738511513068,-500.0,0.00013013,2]
[351314017,1738511513078,-820.42,0.00013013,2]
[351314018,1738511513088,-569.44,0.00013013,2]
[351314019,1738511513099,-935.02,0.00013013,2]
[351314020,1738511513109,-816.63,0.00013013,2]
[351314021,1738511513119,-500.0,0.00013013,2]
[351314022,1738511513129,-584.53,0.00013013,2]
[351314023,1738511513139,-885.67,0.00013013,2]
[351314024,1738511513149,-323.22780951,0.000131,2]
[351314025,1738511513159,-323.22780939,0.000131,2]
[351314026,1738511513170,-323.22780939,0.000131,2]
[351314027,1738511513180,-323.22780939,0.000131,2]
[351314028,1738511513192,-323.22780939,0.000131,2]
[351314029,1738511513203,-323.22780939,0.000131,2]
[351314030,1738511513214,-323.22780939,0.000131,2]
[351314031,1738511513224,-323.22780939,0.000131,2]
[351314032,1738511513235,-323.22780939,0.000131,2]
[351314033,1738511513246,-150.0,0.00013108,2]
[351314034,1738511513258,-150.0,0.00013108,2]
[351314035,1738511513268,-397.0,0.00013137,2]